fUSD/lending_fUSD_20241221
["ID","MTS","AMOUNT","RATE_DAILY","PERIOD"]
[346244916,1734807046163,-1000.0,0.000199,2]
[346244917,1734807046173,-1102.9936,0.000199,2]
[346244918,1734807046182,-727.273,0.000199,2]
[346244919,1734807046191,-740.49630546,0.000199,2]
[346244920,1734807046200,-1544.96446837,0.000199,2]
[346244921,1734807046210,-309.80964526,0.000199,2]
[346244922,1734807046219,-615.10833277,0.000199,2]
[346244923,1734807046229,-150.0,0.00019911,2]
[346244924,1734807046238,-150.0,0.00019916,2]
[346244925,1734807046248,-150.0,0.00019916,2]
[346244926,1734807046257,-226.76892171,0.00019918,2]
[346244927,1734807046266,-150.0,0.00019919,2]
[346244928,1734807046275,-150.0,0.0001992,2]
[346244929,1734807046284,-150.0,0.00019921,2]
[346244930,1734807046294,-150.0,0.00019922,2]
[346244931,1734807046303,-150.0,0.00019927,2]
[346244932,1734807046314,-150.0,0.00019932,2]
[346244933,1734807046323,-150.0,0.00019933,2]
[346244934,1734807046332,-150.0,0.00019933,2]
[346244935,1734807046342,-150.0,0.00019935,2]
[346244936,1734807046351,-150.0,0.00019941,2]
[346244937,1734807046361,-150.0,0.00019945,2]
[346244938,1734807046370,-161.82400299,0.00019947,2]
[346244939,1734807046389,-150.0,0.00019951,2]
[346244940,1734807046399,-150.0,0.00019954,2]
[346244941,1734807046409,-150.0,0.00019955,2]
[346244942,1734807046419,-150.0,0.00019957,2]
[346244943,1734807046429,-150.0,0.00019959,2]
[346244944,1734807046439,-150.0,0.00019964,2]
[346244945,1734807046449,-150.0,0.00019964,2]
[346244946,1734807046459,-1500.0,0.00019966,2]
[346244947,1734807046472,-150.0,0.00019967,2]
[346244948,1734807046482,-150.0,0.0001997,2]
[346244949,1734807046492,-425.54014375,0.00019973,2]
[346244951,1734807046502,-500.0,0.00019973,2]
[346244952,1734807046513,-501.47730796,0.00019973,2]
[346244953,1734807046523,-500.0,0.00019973,2]
[346244954,1734807046533,-150.0,0.00019976,2]
[346244955,1734807046543,-150.0,0.0001998,2]
[346244956,1734807046553,-150.0,0.00019981,2]
[346244957,1734807046565,-150.0,0.00019982,2]
[346244958,1734807046575,-150.0,0.00019983,2]
[346244959,1734807046584,-150.0,0.00019984,2]
[346244960,1734807046594,-150.0,0.00019985,2]
[346244961,1734807046604,-150.0,0.00019986,2]
[346244962,1734807046614,-150.0,0.00019987,2]
[346244963,1734807046624,-150.0,0.00019989,2]
[346244964,1734807046634,-150.0,0.00019991,2]
[346244965,1734807046644,-580.83,0.00019992,2]
[346244966,1734807046654,-849.49,0.00019992,2]
[346244967,1734807046664,-1915.89,0.00019992,2]
[346244968,1734807046673,-612.12952566,0.00019992,2]
[346244969,1734807046683,-543.51,0.00019992,2]
[346244970,1734807046693,-500.0,0.00019992,2]
[346244971,1734807046702,-913.26,0.00019992,2]
[346244972,1734807046712,-1080.82,0.00019992,2]
[346244973,1734807046721,-824.97,0.00019992,2]
[346244974,1734807046731,-1695.04,0.00019992,2]
[346244975,1734807046740,-500.0,0.00019992,2]
[346244976,1734807046750,-776.47,0.00019992,2]
[346244977,1734807046759,-755.4,0.00019992,2]
[346244978,1734807046768,-500.0,0.00019992,2]
[346244979,1734807046778,-500.0,0.00019992,2]
[346244980,1734807046787,-510.98,0.00019992,2]
[346244981,1734807046797,-3122.43,0.00019992,2]
[346244982,1734807046806,-500.0,0.00019992,2]
[346244983,1734807046818,-500.0,0.00019992,2]
[346244984,1734807046827,-500.0,0.00019992,2]
[346244985,1734807046838,-500.0,0.00019992,2]
[346244986,1734807046848,-1000.0,0.00019992,2]
[346244987,1734807046859,-500.0,0.00019992,2]
[346244988,1734807046869,-150.0,0.00019993,2]
[346244989,1734807046879,-587.43,0.00019995,2]
[346244990,1734807046888,-500.0,0.00019999,2]
[346244991,1734807046898,-530.62267789,0.00019999,2]
[346244992,1734807046907,-500.0,0.00019999,2]
[346244993,1734807046917,-1598.0,0.0002,2]
[346244994,1734807046926,-26909.74000232,0.0002,3]
[346244995,1734807047116,-9706.4,0.0002,3]
[346244996,1734807047127,-18275.10586347,0.0002,3]
[346244997,1734807047143,-500.0,0.00019893,2]
[346244998,1734807047152,-62653.08597076,0.0002,3]
[346244999,1734807047162,-733.30224805,0.0002,2]
[346245000,1734807047172,-2773.74757806,0.0002,3]
[346245001,1734807047181,-2454.95294487,0.0002,2]
[346245002,1734807047193,-2051.0,0.0002,2]
[346245003,1734807047208,-559.1500079,0.0002,2]
[346245004,1734807047219,-855.22269352,0.0002,2]
[346245006,1734807295674,250.0,0.00018875,2]
[346245007,1734807324034,1662.95,0.00018861,2]
[346245008,1734807325427,671.55,0.00016943,2]
[346245009,1734807360374,1766.12,0.00018831,2]
[346245010,1734807412178,250.0,0.00018776,2]
[346245011,1734807478002,223.67,0.00018786,2]
[346245012,1734807495894,23900.0,0.00018776,2]
[346245013,1734807580306,1000.0,0.00018739,2]
[346245014,1734807683039,165.48,0.00018715,2]
[346245015,1734807730239,790.56,0.00018718,2]
[346245016,1734807866102,168.46,0.00014986,2]
[346245017,1734807927338,203.01,0.00018853,2]
[346245018,1734807932124,-302.39,0.00018888,2]
[346245019,1734807932144,-250.0,0.00018958,2]
[346245020,1734807932166,-343.41195749,0.00019,2]
[346245021,1734808052131,-300.0,0.000189,6]
[346245022,1734808052157,-150.00495822,0.00019,2]
[346245024,1734808057532,244.55,0.00010137,2]
[346245025,1734808057703,244.55,0.00016813,2]
[346245027,1734808186640,151.19,0.00018783,2]
[346245028,1734808203029,150.0,0.00016813,2]
[346245029,1734808213533,656.09,0.00016879,2]
[346245050,1734808232273,-77.35508429,0.00019,2]
[346245051,1734808232283,-714.08117,0.00019,2]
[346245052,1734808232292,-43.23724571,0.00019,6]
[346245053,1734808232829,-556.76275429,0.00019,6]
[346245054,1734808232839,-300.0,0.00019014,2]
[346245055,1734808232848,-167.16,0.00019038,30]
[346245056,1734808233042,-900.0,0.000191,6]
[346245057,1734808233056,-656.09,0.00019143,2]
[346245058,1734808233066,-600.0,0.00019177,2]
[346245059,1734808233075,-1200.0,0.000192,7]
[346245060,1734808233085,-1600.0,0.000193,7]
[346245061,1734808233094,-300.0,0.000194,7]
[346245062,1734808233103,-300.0,0.000195,7]
[346245063,1734808233113,-1046.95164235,0.000196,2]
[346245064,1734808233123,-300.0,0.000196,7]
[346245065,1734808233132,-178.0,0.0001969,2]
[346245066,1734808233141,-500.0,0.00019691,2]
[346245067,1734808233151,-300.0,0.000197,7]
[346245068,1734808233161,-2899.40629973,0.00019779,2]
[346245069,1734808233170,-4171.0304,0.0001978,2]
[346245070,1734808233180,-156.35449387,0.0001978,2]
[346245071,1734808233189,-2899.40629971,0.00019792,2]
[346245072,1734808233198,-220.0,0.00019794,2]
[346245073,1734808233209,-1503.35455,0.000198,2]
[346245074,1734808233218,-615.0,0.000198,7]
[346245075,1734808233228,-156.35449381,0.000198,2]
[346245076,1734808233237,-18154.04558662,0.000198,3]
[346245077,1734808233249,-11210.31180495,0.000198,3]
[346245078,1734808233260,-1388.189228,0.000198,3]
[346245079,1734808233275,-450.36656259,0.000198,3]
[346245080,1734808233320,-500.70651905,0.000198,3]
[346245082,1734808233331,-1470.9993,0.000198,3]
[346245084,1734808233342,-4961.97228368,0.000198,3]
[346245085,1734808233353,-3948.47980032,0.000198,3]
[346245086,1734808233368,-34428.83505601,0.000198,3]
[346245089,1734808238137,-268.800051,0.000198,3]
[346245090,1734808238210,-665.17985081,0.000198,3]
[346245091,1734808238221,-3357.1,0.000198,3]
[346245092,1734808238232,-1338.296794,0.000198,3]
[346245093,1734808238244,-1002.905338,0.000198,3]
[346245094,1734808238255,-802.6,0.000198,3]
[346245095,1734808238280,-2314.72215211,0.000198,3]
[346245096,1734808238609,-2238.99168339,0.000198,3]
[346245097,1734808238621,-4975.51485734,0.000198,3]
[346245098,1734808238633,-26734.73237389,0.000198,3]
[346245099,1734808238644,-979.42624232,0.000198,3]
[346245100,1734808238655,-594.78797048,0.000198,3]
[346245101,1734808238666,-2386.76495824,0.000198,3]
[346245146,1734808240301,-3526.58397032,0.000198,3]
[346245147,1734808240311,-2899.40629971,0.00019806,2]
[346245148,1734808240320,-2899.40629971,0.00019819,2]
[346245149,1734808240329,-156.35449381,0.0001982,2]
[346245150,1734808240339,-2899.40629971,0.00019833,2]
[346245151,1734808240347,-500.0,0.0001984,2]
[346245152,1734808240356,-156.35449381,0.0001984,2]
[346245153,1734808240366,-2899.40629971,0.00019846,2]
[346245154,1734808240376,-150.0,0.00019853,2]
[346245155,1734808240385,-1618.51375738,0.0001986,2]
[346245156,1734808240399,-1280.89254233,0.0001986,2]
[346245157,1734808240409,-156.35449381,0.0001986,2]
[346245158,1734808240419,-156.92,0.0001987,2]
[346245159,1734808240430,-156.92,0.0001987,2]
[346245160,1734808240441,-500.0,0.00019873,2]
[346245161,1734808240452,-2899.40629971,0.00019873,2]
[346245162,1734808240462,-500.0,0.00019879,2]
[346245163,1734808240471,-211.885454,0.00019879,2]
[346245164,1734808240482,-924.16,0.00019879,2]
[346245165,1734808240494,-500.0,0.00019879,2]
[346245166,1734808240503,-3871.217311,0.00019879,2]
[346245167,1734808240512,-640.54,0.00019879,2]
[346245168,1734808240521,-502.9,0.00019879,2]
[346245169,1734808240531,-734.63,0.00019879,2]
[346245170,1734808240540,-500.0,0.00019879,2]
[346245171,1734808240549,-500.0,0.00019879,2]
[346245172,1734808240558,-880.99,0.00019879,2]
[346245173,1734808240567,-645.41,0.00019879,2]
[346245174,1734808240576,-1236.95,0.00019879,2]
[346245175,1734808240586,-500.0,0.00019879,2]
[346245176,1734808240595,-500.0,0.00019879,2]
[346245177,1734808240604,-500.0,0.00019879,2]
[346245178,1734808240613,-500.0,0.00019879,2]
[346245179,1734808240623,-162.43731236,0.00019879,2]
[346245180,1734808240642,-1185.53268764,0.00019879,2]
[346245181,1734808240652,-185.73839404,0.00019879,2]
[346245182,1734808240663,-757.88955192,0.00019879,2]
[346245183,1734808240674,-89.20205404,0.00019879,2]
[346245184,1734808240683,-885.48,0.00019879,2]
[346245185,1734808240692,-472.4861565,0.00019879,2]
[346245186,1734808240748,-1229.9438435,0.00019879,2]
[346245187,1734808240758,-446.7311565,0.00019879,2]
[346245188,1734808240769,-224.6288435,0.00019879,2]
[346245189,1734808240779,-909.82959791,0.00019879,2]
[346245190,1734808240792,-336.3,0.00019879,2]
[346245191,1734808240803,-206.97040209,0.00019879,2]
[346245192,1734808240813,-2627.15,0.00019879,2]
[346245193,1734808240822,-2528.16,0.00019879,2]
[346245194,1734808240831,-774.27,0.00019879,2]
[346245195,1734808240840,-3529.78,0.00019879,2]
[346245196,1734808240850,-1394.4,0.00019879,2]
[346245197,1734808240861,-1354.35,0.00019879,2]
[346245198,1734808240871,-700.95,0.00019879,2]
[346245199,1734808240880,-1421.39,0.00019879,2]
[346245200,1734808240890,-1971.81,0.00019879,2]
[346245201,1734808240899,-1040.89,0.00019879,2]
[346245202,1734808240908,-500.0,0.00019879,2]
[346245203,1734808240917,-500.0,0.00019879,2]
[346245204,1734808240926,-500.0,0.00019879,2]
[346245205,1734808240935,-640.57,0.00019879,2]
[346245206,1734808240944,-2568.16,0.00019879,2]
[346245207,1734808240954,-861.21,0.00019879,2]
[346245208,1734808240963,-4369.76,0.00019879,2]
[346245209,1734808240972,-2167.99,0.00019879,2]
[346245210,1734808240981,-500.0,0.00019879,2]
[346245211,1734808240991,-500.0,0.00019879,2]
[346245212,1734808241002,-552.39642261,0.00019879,2]
[346245213,1734808241011,-500.0,0.00019879,2]
[346245214,1734808241020,-500.0,0.00019879,2]
[346245215,1734808241029,-500.0,0.00019879,2]
[346245216,1734808241038,-500.0,0.00019879,2]
[346245217,1734808241047,-500.0,0.00019879,2]
[346245218,1734808241056,-500.0,0.00019879,2]
[346245219,1734808241064,-592.78,0.00019879,2]
[346245221,1734808241074,-500.0,0.00019879,2]
[346245222,1734808241083,-514.359306,0.00019879,2]
[346245223,1734808241092,-500.0,0.00019879,2]
[346245224,1734808241101,-63159.74861131,0.0001988,3]
[346245225,1734808241110,-1386.87378903,0.0001988,3]
[346245226,1734808241119,-115626.03148956,0.0001988,2]
[346245227,1734808241130,-1807.59999988,0.0001988,2]
[346245269,1734808244634,-360.396108,0.00019879,2]
[346245273,1734808244873,-182.203892,0.00019879,2]
[346245274,1734808244883,-500.0,0.00019879,2]
[346245275,1734808244892,-1130.12513537,0.0001988,2]
[346245276,1734808244907,-1696.67541658,0.0001988,2]
[346245301,1734808246158,-414.96105602,0.0001988,2]
[346245310,1734808246317,-1071.11267188,0.0001988,2]
[346245311,1734808246349,-9610.6518736,0.0001988,2]
[346245312,1734808246395,-370.52494893,0.0001988,2]
[346245313,1734808246408,-1577.083872,0.0001988,2]
[346245319,1734808246953,-500.0,0.00019879,2]
[346245320,1734808246963,-251742.71208146,0.0001988,2]
[346245321,1734808246974,-1039.449305,0.0001988,2]
[346245322,1734808247002,-9788.07941371,0.0001988,2]
[346245323,1734808325170,450.0,0.00013,2]
[346245324,1734808326272,500.0,0.00015,2]
[346245325,1734808327358,550.0,0.00017,2]
[346245326,1734808413375,209.0,0.0001877,2]
[346245327,1734808413701,209.0,0.0001833,2]
[346245328,1734808414027,209.0,0.0001789,2]
[346245329,1734808414327,209.0,0.0001744,2]
[346245330,1734808510152,499.97,0.00018867,2]
[346245331,1734808538411,10370.23164684,0.00018872,2]
[346245333,1734808992253,150.21,0.00010137,2]
[346245334,1734809108293,150359.23135817,0.00013,2]
[346245336,1734809275278,30070.07356848,0.00013,2]
[346245339,1734809345116,-270.24457068,0.00014,2]
[346245340,1734809345143,-1953.00577909,0.00015,2]
[346245341,1734809345164,-15920.58477987,0.000154,2]
[346245342,1734809345186,-37077.23035036,0.000157,2]
[346245343,1734809345219,-3867.72408034,0.000157,2]
[346245344,1734809345251,-63679.75349013,0.000157,2]
[346245345,1734809345273,-634.1,0.00016461,2]
[346245346,1734809345295,-700.0,0.00016568,2]
[346245347,1734809357131,-500.0,0.00017664,2]
[346245348,1734809357153,-621.91049946,0.00017664,2]
[346245349,1734809357173,-388.59283899,0.00017664,2]
[346245350,1734809357264,168.11,0.00018652,30]
[346245351,1734809406244,600.0,0.00016568,2]
[346245370,1734809432420,-450.0,0.00017664,2]
[346245373,1734809432468,-150.0,0.00017664,2]
[346245374,1734809432477,-150.0,0.00018,2]
[346245375,1734809432487,-150.0,0.00018,2]
[346245376,1734809432496,-150.0,0.00018,2]
[346245377,1734809432505,-250.0,0.00018348,2]
[346245378,1734809432515,-150.0,0.000185,2]
[346245379,1734809432524,-1844.13,0.00018581,2]
[346245380,1734809432533,-151.19,0.00018594,2]
[346245381,1734809432543,-164.07,0.00018679,2]
[346245382,1734809432552,-1000.0,0.00018692,2]
[346245383,1734809432561,-250.0,0.000187,2]
[346245384,1734809432570,-634.1,0.00018725,2]
[346245385,1734809432579,-166.82,0.00018746,2]
[346245386,1734809432589,-600.0,0.0001876,2]
[346245387,1734809432598,-533.47,0.0001878,2]
[346245388,1734809432607,-170.5,0.00018793,2]
[346245389,1734809432617,-200.0,0.00018843,2]
[346245390,1734809432626,-7160.52040717,0.00018872,2]
[346245403,1734809438430,-500.0,0.00017664,2]
[346245404,1734809438443,-47.18977324,0.00018872,2]
[346245405,1734809438459,-896.4525,0.00018872,2]
[346245406,1734809438591,-440.43006695,0.00018872,2]
[346245407,1734809438653,-582.336,0.00018872,2]
[346245408,1734809438667,-4402.8396058,0.00018872,2]
[346245409,1734809438679,-850.83,0.00018896,2]
[346245410,1734809438690,-200.0,0.000189,2]
[346245411,1734809438700,-539.53977936,0.000189,2]
[346245412,1734809438710,-165.89,0.00018986,2]
[346245413,1734809438720,-571.31,0.00019,2]
[346245414,1734809438730,-600.0,0.00019,2]
[346245415,1734809438743,-150.0,0.00019,2]
[346245416,1734809438753,-150.0,0.00019,2]
[346245417,1734809438764,-4480.84063014,0.0001901,2]
[346245418,1734809438774,-300.0,0.00019014,2]
[346245419,1734809438785,-652.49284248,0.0001911,2]
[346245420,1734809438795,-910.23853641,0.00019129,2]
[346245421,1734809438805,-209.0,0.0001922,2]
[346245422,1734809438815,-1125.02,0.00019339,2]
[346245423,1734809438825,-29999.99,0.00019339,2]
[346245424,1734809438836,-11347.89,0.00019339,2]
[346245425,1734809438846,-324.59,0.00019339,2]
[346245426,1734809438856,-412.65071259,0.00019493,2]
[346245427,1734809438867,-150.0,0.000195,4]
[346245428,1734809438877,-167.54,0.00019544,2]
[346245430,1734809438888,-2120.78977227,0.000196,2]
[346245432,1734809438903,-908.27411126,0.000196,2]
[346245433,1734809438914,-164.3783932,0.000196,2]
[346245434,1734809438925,-1630.0,0.000196,2]
[346245435,1734809438936,-2120.7897722,0.00019633,2]
[346245436,1734809438947,-908.27411118,0.00019633,2]
[346245437,1734809438957,-209.0,0.0001966,2]
[346245438,1734809438968,-2120.7897722,0.00019667,2]
[346245439,1734809438979,-908.27411118,0.00019667,2]
[346245440,1734809438989,-1983.95762,0.0001968,2]
[346245441,1734809439000,-26214.81022971,0.000197,2]
[346245442,1734809439013,-1633.81961151,0.000197,2]
[346245443,1734809439026,-6253.74681108,0.000197,2]
[346245444,1734809439039,-5011.15299183,0.000197,2]
[346245446,1734809440477,-24156.75431909,0.000197,2]
[346245447,1734809440491,-500.0,0.000197,2]
[346245448,1734809440852,-33558.67920702,0.000197,2]
[346245497,1734809444862,-89961.52933448,0.000197,2]
[346245500,1734809444938,-1347.16490932,0.000197,2]
[346245501,1734809444951,-147678.17202194,0.000197,2]
[346245502,1734809444961,-2120.7897722,0.000197,2]
[346245504,1734809444971,-908.27411118,0.000197,2]
[346245506,1734809444980,-1302.0,0.000197,2]
[346245508,1734809444990,-1000.0,0.000197,2]
[346245509,1734809445000,-2032.0516,0.00019719,2]
[346245510,1734809445009,-310.8813,0.00019719,2]
[346245511,1734809445019,-2120.7897722,0.00019733,2]
[346245512,1734809445028,-908.27411118,0.00019733,2]
[346245513,1734809445038,-2126.85769491,0.00019733,2]
[346245514,1734809445186,-1600.61070509,0.00019733,2]
[346245515,1734809445196,-2120.7897722,0.00019767,2]
[346245516,1734809445206,-908.27411118,0.00019767,2]
[346245517,1734809445216,-3037.8914,0.00019779,2]
[346245518,1734809445227,-2256.55498416,0.00019779,2]
[346245519,1734809445239,-196.15071584,0.00019779,2]
[346245520,1734809445249,-3315.3232,0.0001978,2]
[346245521,1734809445259,-2381.7836,0.0001978,2]
[346245522,1734809445268,-1842.61767737,0.0001978,2]
[346245523,1734809445280,-485.305,0.0001978,2]
[346245544,1734809446339,-1149.357475,0.0001978,2]
[346245545,1734809446351,-1522.71984763,0.0001978,2]
[346245546,1734809446360,-185.50967467,0.0001978,2]
[346245547,1734809446370,-2120.7897722,0.000198,2]
[346245548,1734809446379,-908.27411118,0.000198,2]
[346245549,1734809446389,-2120.7897722,0.00019833,2]
[346245550,1734809446401,-908.27411118,0.00019833,2]
[346245551,1734809446413,-500.0,0.0001984,2]
[346245552,1734809446422,-600.0,0.00019856,2]
[346245553,1734809446431,-500.0,0.00019856,2]
[346245554,1734809446440,-2120.7897722,0.00019867,2]
[346245555,1734809446449,-908.27411118,0.00019867,2]
[346245556,1734809446459,-156.92,0.00019869,2]
[346245557,1734809446468,-156.92,0.0001987,2]
[346245558,1734809446477,-500.0,0.00019873,2]
[346245559,1734809446487,-500.0,0.00019878,2]
[346245560,1734809446497,-500.0,0.00019878,2]
[346245561,1734809446507,-365.25932048,0.00019878,2]
[346245562,1734809446517,-375.06298393,0.00019878,2]
[346245563,1734809446527,-332.50103573,0.00019878,2]
[346245564,1734809446536,-500.0,0.00019879,2]
[346245565,1734809446547,-500.0,0.00019879,2]
[346245566,1734809446556,-377.5233905,0.00019879,2]
[346245567,1734809446577,-122.4766095,0.00019879,2]
[346245568,1734809446589,-500.0,0.00019879,2]
[346245569,1734809446598,-500.0,0.00019879,2]
[346245570,1734809446609,-10.24715346,0.00019879,2]
[346245571,1734809446629,-489.75284654,0.00019879,2]
[346245572,1734809446638,-357.53,0.00019879,2]
[346245573,1734809446647,-506.80112971,0.00019879,2]
[346245574,1734809446664,-332.23834751,0.00019879,2]
[346245575,1734809446675,-167.76165249,0.00019879,2]
[346245576,1734809446685,-332.23834751,0.00019879,2]
[346245577,1734809446785,-167.76165249,0.00019879,2]
[346245578,1734809446796,-324.64334751,0.00019879,2]
[346245588,1734809454470,349.4718,0.00016736,2]
[346245597,1734809854070,157.21,0.00010137,2]
[346245599,1734810130770,450.0,0.00013,2]
[346245601,1734810350127,-500.0,0.00017664,2]
[346245602,1734810350150,-150.0,0.00018,2]
[346245603,1734810350172,-150.0,0.00018,2]
[346245604,1734810350193,-150.0,0.00018,2]
[346245605,1734810350214,-1056.0,0.00018555,2]
[346245606,1734810350235,-500.0,0.0001876,2]
[346245607,1734810350256,-250.0,0.00018799,2]
[346245608,1734810350277,-155.57,0.00018838,2]
[346245609,1734810350300,-632.44,0.00018856,2]
[346245610,1734810350322,-1000.0,0.00018899,2]
[346245611,1734810350347,-150.0,0.00018904,2]
[346245612,1734810350367,-154.41,0.00018935,2]
[346245613,1734810350386,-2000.0,0.00018935,2]
[346245614,1734810350406,-792.68,0.00018946,2]
[346245615,1734810350427,-300.0,0.00018999,2]
[346245616,1734810350450,-571.578,0.00019,2]
[346245617,1734810350471,-171.34865326,0.00019001,2]
[346245618,1734810371885,-21446.50134674,0.00019001,2]
[346245619,1734810433900,500.0,0.00017664,2]
[346245620,1734810435518,500.0,0.0001876,2]
[346245621,1734810437970,200.0,0.00018841,2]
[346245623,1734810493537,500.0,0.00017664,2]
[346245624,1734810500134,150.0,0.00019,2]
[346245625,1734810559368,426.77,0.00018824,2]
[346245626,1734810574513,500.0,0.00017664,2]
[346245627,1734810576086,500.0,0.0001876,2]
[346245634,1734810611363,2763.84579973,0.00018959,2]
[346245635,1734810627089,773.95,0.000169,2]
[346245652,1734810631675,-300.0,0.00019014,2]
[346245654,1734810631684,-167.23,0.00019059,30]
[346245656,1734810631694,-773.95,0.00019164,2]
[346245658,1734810631703,-170.57594983,0.00019238,2]
[346245660,1734810631713,-538.04405017,0.00019239,2]
[346245661,1734810631740,-2638.86621395,0.00019239,2]
[346245662,1734810631795,-2515.94290178,0.00019239,2]
[346245672,1734810632749,-1321.7928341,0.00019239,2]
[346245673,1734810632759,-300.0,0.00019338,2]
[346245674,1734810632768,-12574.67790361,0.00019339,2]
[346245679,1734810637652,-2909.878,0.00019339,2]
[346245680,1734810637667,-963.2188838,0.00019339,2]
[346245681,1734810637680,-2386.76397421,0.00019339,2]
[346245682,1734810637720,-2281.11123838,0.00019339,2]
[346245683,1734810637730,-1056.0,0.00019482,2]
[346245684,1734810637739,-160.81975011,0.00019534,2]
[346245685,1734810637748,-6245.19939698,0.000196,2]
[346245686,1734810637986,-964.89185046,0.000196,2]
[346245687,1734810638008,-730.81721679,0.000196,2]
[346245689,1734810638019,-1860.04352126,0.000196,2]
[346245717,1734810639610,-491.2881889,0.000196,2]
[346245718,1734810639622,-451.5099872,0.000196,2]
[346245719,1734810639634,-9146.56168093,0.000196,2]
[346245720,1734810639705,-489.4,0.000196,2]
[346245721,1734810639808,-2017.21155748,0.000196,2]
[346245722,1734810639818,-107.73004969,0.00019644,2]
[346245723,1734810640044,-53.08970042,0.00019644,2]
[346245724,1734810640058,-917.40029958,0.0001967,2]
[346245725,1734810640070,-1104.600005,0.0001967,2]
[346245726,1734810640081,-27777.99969542,0.0001967,2]
[346245727,1734810640090,-5011.15299183,0.000197,2]
[346245728,1734810640099,-160.81975011,0.00019726,2]
[346245729,1734810640109,-1500.0,0.00019754,2]
[346245731,1734810640118,-27311.0,0.00019778,2]
[346245733,1734810640127,-981.12,0.00019779,2]
[346245734,1734810640135,-151.37901853,0.00019779,2]
[346245736,1734810640145,-150.0,0.00019781,2]
[346245738,1734810640154,-151.37901853,0.00019803,2]
[346245739,1734810640164,-151.37901853,0.00019827,2]
[346245740,1734810640174,-160.81975011,0.00019836,2]
[346245741,1734810640184,-500.0,0.0001984,2]
[346245742,1734810640193,-151.37901853,0.00019852,2]
[346245743,1734810640203,-500.0,0.00019856,2]
[346245744,1734810640213,-500.0,0.00019856,2]
[346245745,1734810640223,-150.0,0.00019868,2]
[346245746,1734810640233,-176.85,0.00019868,2]
[346245747,1734810640242,-151.37901853,0.00019876,2]
[346245748,1734810640253,-500.0,0.00019877,2]
[346245749,1734810640262,-500.0,0.00019877,2]
[346245750,1734810640271,-551.97,0.00019877,2]
[346245751,1734810640281,-500.0,0.00019877,2]
[346245752,1734810640290,-500.0,0.00019877,2]
[346245753,1734810640300,-532.47,0.00019877,2]
[346245754,1734810640313,-500.0,0.00019877,2]
[346245755,1734810640323,-501.30399202,0.00019877,2]
[346245756,1734810640332,-500.0,0.00019877,2]
[346245757,1734810640341,-500.0,0.00019877,2]
[346245758,1734810640350,-500.0,0.00019877,2]
[346245759,1734810640359,-500.0,0.00019877,2]
[346245760,1734810640368,-500.0,0.00019877,2]
[346245761,1734810640378,-500.0,0.00019877,2]
[346245762,1734810640387,-500.0,0.00019877,2]
[346245763,1734810640396,-500.0,0.00019877,2]
[346245764,1734810640405,-500.0,0.00019877,2]
[346245765,1734810640414,-500.0,0.00019877,2]
[346245766,1734810640423,-500.0,0.00019877,2]
[346245767,1734810640432,-304.20287046,0.00019877,2]
[346245768,1734810640442,-500.0,0.00019877,2]
[346245769,1734810640451,-559.31976572,0.00019877,2]
[346245770,1734810640460,-500.0,0.00019877,2]
[346245771,1734810640469,-500.0,0.00019877,2]
[346245772,1734810640478,-500.0,0.00019877,2]